Cogmind - Beta 10 X2 @@@ ROGUE MODE // 2020.06.30 @ 11:17:42 Player: Kyzrati Result: Destroyed by G-47 Trooper with Particle Gun Performance ------------- Evolutions (2) 1000 Regions Visited (6) 1200 Robots Destroyed (41) 205 Value Destroyed (1234) 1234 Prototype IDs (23) 460 Alien Tech Used (0) 0 Bonus (300) 300 TOTAL SCORE: 4399 Bonus ------- Aligned with FarCom 300 Cogmind --------- Core Integrity 0/550 Matter 213/300 Energy 70/100 System Corruption 0% Temperature Cool (9) Movement Core (800) Ox15 Location -8/Materials Parts ------- > --- POWER (1) -------- (None) > --- PROPULSION (3) --- (None) > --- UTILITY (4) ------ Large Storage Unit Large Storage Unit Advanced Visual Processing Unit Light Armor Plating > --- WEAPON (3) ------- Great Maul Great Maul Longsword +1 > --- INVENTORY (16) --- Light Angular Momentum Engine Large Storage Unit EMP Blaster Missile Launcher Peak State ------------ > --- POWER ------------ Nuclear Core > --- PROPULSION ------- Aluminum Leg Aluminum Leg Titanium Leg > --- UTILITY ---------- Large Storage Unit Large Storage Unit Advanced Visual Processing Unit Improved Propulsion Shielding > --- WEAPON ----------- Electrolaser Improved Grenade Launcher Great Maul > --- INVENTORY -------- Light Angular Momentum Engine Aluminum Leg Aluminum Leg Armored Wheel Large Storage Unit Light Armor Plating EMP Blaster Missile Launcher Longsword +1 [Rating: 27] Favorites ----------- Power Improved Ion Engine Engine Improved Ion Engine Power Core Nuclear Core Propulsion Aluminum Leg Leg Aluminum Leg Wheel Wheel Utility Large Storage Unit Storage Large Storage Unit Processor Advanced Visual Processing Unit Protection Core Shielding Weapon Small Laser Energy Gun Small Laser Ballistic Gun Light Assault Rifle Ballistic Cannon Flak Cannon Launcher Improved Grenade Launcher Impact Weapon Great Maul Slashing Weapon Longsword +1 Build | -11 -10 -9 -9 -9 -8 -8 ------- Run | Scr Mat Mat Min Exi Min Mat Slots Evolved 4 | . . 2 . . . 2 Power . | . . . . . . . Propulsion 1 | . . 1 . . . . Utility 2 | . . 1 . . . 1 Weapon 1 | . . . . . . 1 Parts Attached 61 | 6 15 5 8 1 8 18 Power 6 | 1 3 . 1 . 1 . Engine 5 | 1 3 . 1 . . . Core 1 | . . . . . 1 . Reactor . | . . . . . . . Propulsion 20 | 2 5 1 5 . 3 4 Treads . | . . . . . . . Leg 17 | . 5 1 5 . 3 3 Wheel 3 | 2 . . . . . 1 Hover . | . . . . . . . Flight . | . . . . . . . Utility 12 | 1 3 2 1 . 1 4 Device . | . . . . . . . Storage 4 | 1 2 . . . . 1 Processor 2 | . . 1 . . . 1 Hackware . | . . . . . . . Protection 6 | . 1 1 1 . 1 2 Artifact . | . . . . . . . Weapon 23 | 2 4 2 1 1 3 10 Energy Gun 8 | . 3 1 . . 3 1 Energy Cannon . | . . . . . . . Ballistic Gun 3 | 2 1 . . . . . Ballistic Cannon 1 | . . . . . . 1 Launcher 2 | . . . . . . 2 Special Weapon . | . . . . . . . Impact Weapon 5 | . . 1 1 . . 3 Slashing Weapon 4 | . . . . 1 . 3 Piercing Weapon . | . . . . . . . Special Melee Weapon . | . . . . . . . Unidentified Prototypes . | . . . . . . . Parts Lost 36 | . 9 . 7 . 5 15 Power 5 | . 2 . 1 . 1 1 Propulsion 14 | . 2 . 4 . 2 6 Utility 3 | . 1 . . . . 2 Weapon 14 | . 4 . 2 . 2 6 Highest Loss Streak 11 | . 4 . 6 . 3 11 Average Slot Usage (%) 88 | . 82 92 84 93 92 88 Engine 6 | . 8 11 8 11 4 . Core 2 | . . . . . 3 7 Leg 26 | . 21 28 32 33 31 23 Wheel 1 | . 5 . . . . . Storage 18 | . 18 22 22 22 14 15 Processor 2 | . . 6 2 . . 6 Protection 8 | . 3 2 8 11 16 10 Energy Gun 11 | . 10 21 1 . 19 14 Ballistic Gun 3 | . 12 . . . . . Impact Weapon 4 | . . . 9 11 . 9 Naked Turns . | . . . . . . . Heaviest Build 49 | 12 38 41 43 46 46 49 Greatest Support 37 | 26 26 30 30 30 30 37 Greatest Overweight (x) 4 | . 1 2 2 1 4 4 Average Overweight (x) . | . . 1 1 1 . 1 Largest Inventory Capacity 16 | 6 16 16 16 16 16 16 Average Capacity 13 | 5 9 16 16 16 12 14 Most Carried 12 | 6 10 12 12 11 11 11 Average Carried 8 | 3 6 10 9 10 9 9 Final Capacity 16 | 6 16 16 16 16 10 16 Final Carried 12 | 6 9 12 8 11 8 4 Class Distribution -------------------- 55% | Mutant 44% | Scavenger-Mutant Dominant Class ---------------- Mutant | -10/Materials Scavenger-Mutant | -9/Materials Scavenger-Mutant | -9/Mines Scavenger-Mutant | -9/Exiles Scavenger-Mutant | -8/Mines Mutant | -8/Materials Resources | -11 -10 -9 -9 -9 -8 -8 ----------- Run | Scr Mat Mat Min Exi Min Mat Matter Collected 797 | 209 277 59 52 . 80 120 Remotely . | . . . . . . . Salvage Created 1447 | . 594 121 225 . 150 357 Parts 75 | . 27 9 4 . 5 30 Haulers Intercepted 1 | . . 1 . . . . Recyclers Shooed 4 | . 2 1 . . . 1 Parts Field Recycled . | . . . . . . . Retrieved Matter . | . . . . . . . Parts Self-Destructed . | . . . . . . . Prevented . | . . . . . . . Kills | -11 -10 -9 -9 -9 -8 -8 ------- Run | Scr Mat Mat Min Exi Min Mat Combat Hostiles Destroyed 31 | . 10 1 3 . 3 14 Melee 8 | . . . 3 . 1 4 Guns 13 | . 10 1 . . 2 . Cannons 1 | . . . . . . 1 AOE 9 | . . . . . . 9 Classes Destroyed 9 | . 4 2 1 . . 2 Worker 2 | . 2 . . . . . Builder 4 | . 3 . . . . 1 Hauler 1 | . . 1 . . . . Recycler 3 | . 1 . 1 . . 1 Swarmer 6 | . . . . . . 6 Grunt 20 | . 10 . 2 . 3 5 Duelist 2 | . . . 1 . . 1 Protector 1 | . . . . . . 1 Sentry 2 | . . 1 . . . 1 Best Kill Streak 11 | . 4 1 3 . 3 11 Combat Bots Only 10 | . 2 1 2 . 3 10 Max Kills in Single Turn 3 | . 1 1 1 . 1 3 Gunslinging . | . . . . . . . Exploded 3 | . . . . . . 3 Melee 1 | . . . 1 . 1 1 Uniques/NPCs Destroyed . | . . . . . . . Combat | -11 -10 -9 -9 -9 -8 -8 -------- Run | Scr Mat Mat Min Exi Min Mat Damage Taken 4385 | . 1060 132 710 . 373 2110 Core 975 | . 159 25 170 . 65 556 Absorbed by Shields . | . . . . . . . Core Remaining (%) 57 | 100 36 . . . 35 . Volleys Fired 100 | . 76 9 1 . 3 11 Largest 2 | . 2 2 2 . 2 1 Hottest 80 | . 80 80 80 . 80 56 Shots Fired 168 | . 131 18 2 . 6 11 Gun 160 | . 131 18 2 . 6 3 Cannon 1 | . . . . . . 1 Launcher 7 | . . . . . . 7 Special . | . . . . . . . Kinetic 78 | . 77 . . . . 1 Thermal 53 | . 41 3 . . 6 3 Explosive 7 | . . . . . . 7 Electromagnetic 30 | . 13 15 2 . . . Robot Hit Streak 17 | . 17 17 1 . 7 9 Robot Miss Streak 3 | . 3 . 1 . . 1 Penetration Max . | . . . . . . . Secondary Targets 1 | . . . . . 1 . Max Gunslinging Chain 1 | . . . . . 1 . Shots Hit Robots 168 | . 102 16 12 . 10 28 Core Hits 73 | . 31 5 4 . 6 27 Critical Hits 1 | . . . . . . 1 Critical Kills . | . . . . . . . Critical Parts Destroyed 1 | . . . . . . 1 Melee Attacks 56 | . . . 14 . 4 38 Impact 43 | . . . 14 . . 29 Slashing 13 | . . . . . 4 9 Piercing . | . . . . . . . Sneak Attacks 2 | . . . 1 . . 1 Combat Hostiles . | . . . . . . . Follow-up Attacks 1 | . . . . . . 1 Damage Inflicted 3444 | . 1092 189 305 . 229 1629 Guns 1305 | . 1011 189 13 . 63 29 Cannons 7 | . . . . . . 7 Explosions 964 | . 72 . . . . 892 Melee 1159 | . . . 292 . 166 701 Ramming 9 | . 9 . . . . . Kinetic 570 | . 563 . . . . 7 Thermal 528 | . 412 24 . . 63 29 Explosive 892 | . . . . . . 892 Electromagnetic 286 | . 108 165 13 . . . Impact 589 | . . . 292 . . 297 Slashing 570 | . . . . . 166 404 Piercing . | . . . . . . . Highest Corruption 6 | . 6 . . . . . Average Corruption 5 | . 5 . . . . . Corruption Purged . | . . . . . . . Effects 25 | . 25 . . . . . Message Errors 4 | . 4 . . . . . Matter Fused 4 | . 4 . . . . . Heat Flow Errors 2 | . 2 . . . . . Energy Discharges 1 | . 1 . . . . . Data Loss (minor) 2 | . 2 . . . . . Data Loss (major) 2 | . 2 . . . . . Targeting Errors 7 | . 7 . . . . . Weapon Failures 3 | . 3 . . . . . Overload Shots . | . . . . . . . Overflow Damage 121 | . 7 . 35 . . 79 Projectiles . | . . . . . . . Explosions 12 | . 7 . . . . 5 Melee 109 | . . . 35 . . 74 Knockbacks 2 | . . . . . . 2 Impact 2 | . . . . . . 2 Kinetic . | . . . . . . . Secondary . | . . . . . . . Self-Inflicted Damage 73 | . 2 . . . . 71 Shots 4 | . . . . . . 4 Rammed 3 | . 3 . . . . . Targets Rammed 7 | . 6 1 . . . . Kicked 4 | . 3 1 . . . . Crushed . | . . . . . . . Highest Temperature 260 | . 260 45 27 . 72 33 Average Temperature 45 | . 52 21 16 . 43 18 Received Heat Transfer 1878 | . 585 48 246 . 207 792 Siege Activations . | . . . . . . . Robots Corrupted . | . . . . . . . Combat Hostiles . | . . . . . . . Parts Fried 7 | . . 1 2 . . 4 Impact Corruptions 5 | . . . 2 . . 3 Robots Melted . | . . . . . . . Combat Hostiles . | . . . . . . . Parts Melted 1 | . 1 . . . . . Heat Transferred 1149 | . 875 50 . . 150 74 Parts Sabotaged . | . . . . . . . Parts Stolen . | . . . . . . . Parts Stripped . | . . . . . . . Power Chain Reactions 1 | . 1 . . . . . Missiles Intercepted . | . . . . . . . Alert | -11 -10 -9 -9 -9 -8 -8 ------- Run | Scr Mat Mat Min Exi Min Mat Peak Influence 255 | . 220 128 64 . 50 255 Average Influence 71 | . 88 60 48 . 35 87 Maximum Alert Level 1 | . 1 . . . . 1 Low Security (%) 87 | 100 84 100 100 . 100 76 Level 1 12 | . 15 . . . . 23 Level 2 . | . . . . . . . Level 3 . | . . . . . . . Level 4 . | . . . . . . . Level 5 . | . . . . . . . High Security . | . . . . . . . Max Security . | . . . . . . . Squads Dispatched 8 | . 3 2 . . . 3 Investigation 2 | . . 2 . . . . Extermination . | . . . . . . . Reinforcement 5 | . 3 . . . . 2 Assault 1 | . . . . . . 1 Garrison . | . . . . . . . Intercept . | . . . . . . . Construction Impeded 1 | . . . . . . 1 Haulers Reinforced . | . . . . . . . Stealth | -11 -10 -9 -9 -9 -8 -8 --------- Run | Scr Mat Mat Min Exi Min Mat Distress Signals 3 | . 2 . . . . 1 Communications Jammed . | . . . . . . . Distress Signals . | . . . . . . . Times Spotted 71 | . 21 6 8 . 6 30 Peak Tracking Total 13 | . 4 4 3 . 3 13 Tactical Retreats 5 | . . . 1 . 1 3 Traps | -11 -10 -9 -9 -9 -8 -8 ------- Run | Scr Mat Mat Min Exi Min Mat Traps Triggered 4 | . 3 1 . . . . Indirectly . | . . . . . . . Trap Hack Attempts . | . . . . . . . Triggered . | . . . . . . . Disarmed . | . . . . . . . Reprogrammed . | . . . . . . . Reused . | . . . . . . . Traps Extracted . | . . . . . . . Installed . | . . . . . . . Triggered . | . . . . . . . Exploded 3 | . . . . . 2 1 Machines | -11 -10 -9 -9 -9 -8 -8 ---------- Run | Scr Mat Mat Min Exi Min Mat Machines Disabled 3 | . 1 . . . . 2 Max in Single Turn 1 | . 1 . . . . 1 Garrison Access 1 | . . . . . . 1 Machines Sabotaged . | . . . . . . . Garrisons Compromised . | . . . . . . . Overloaded Fab Kills . | . . . . . . . Fab Network Shutdowns . | . . . . . . . Hacking | -11 -10 -9 -9 -9 -8 -8 --------- Run | Scr Mat Mat Min Exi Min Mat Machines Accessed 7 | . 2 2 . 2 . 1 Terminals 4 | . 2 2 . . . . Fabricators . | . . . . . . . Repair Stations . | . . . . . . . Recycling Units . | . . . . . . . Scanalyzers . | . . . . . . . Garrison Access 1 | . . . . . . 1 Total Hacks 15 | . 4 7 . 2 . 2 Successful 6 | . 2 2 . 2 . . Failed 9 | . 2 5 . . . 2 Catastrophic 2 | . . 2 . . . . Database Lockouts . | . . . . . . . Manual 12 | . 4 7 . 1 . . Terminals 11 | . 4 7 . . . . Fabricators . | . . . . . . . Repair Stations . | . . . . . . . Recycling Units . | . . . . . . . Scanalyzers . | . . . . . . . Garrison Access 2 | . . . . . . 2 Terminal Hacks 5 | . 2 1 . 2 . . Record 1 | . . . . 1 . . Part Schematic 2 | . 1 1 . . . . Zone Layout 1 | . 1 . . . . . EX-Prototype ID Bank 1 | . . . . 1 . . Fabricator Hacks . | . . . . . . . Repair Station Hacks . | . . . . . . . Recycling Unit Hacks . | . . . . . . . Scanalyzer . | . . . . . . . Garrison Access Hacks . | . . . . . . . Unauthorized Hacks 1 | . . 1 . . . . Terminals 1 | . . 1 . . . . Botnet 1 | . . 1 . . . . Fabricators . | . . . . . . . Repair Stations . | . . . . . . . Recycling Units . | . . . . . . . Scanalyzers . | . . . . . . . Garrison Access . | . . . . . . . Data Cores Recovered . | . . . . . . . Used . | . . . . . . . Hacking Detections 4 | . 2 1 . . . 1 Full Trace Events 1 | . . 1 . . . . Feedback Events . | . . . . . . . Feedback Blocked . | . . . . . . . Robot Schematics Acquired . | . . . . . . . Robots Built . | . . . . . . . Matter . | . . . . . . . Time . | . . . . . . . Total Robot Build Rating . | . . . . . . . Part Schematics Acquired 2 | . 1 1 . . . . Parts Built . | . . . . . . . Matter . | . . . . . . . Time . | . . . . . . . Total Part Build Rating . | . . . . . . . Parts Repaired . | . . . . . . . Time . | . . . . . . . Parts Recycled . | . . . . . . . Recycled Matter . | . . . . . . . Retrieved Matter . | . . . . . . . Retrieved Components . | . . . . . . . Parts Scanalyzed . | . . . . . . . Part Schematics Acquired . | . . . . . . . Parts Damaged . | . . . . . . . Bothacking | -11 -10 -9 -9 -9 -8 -8 ------------ Run | Scr Mat Mat Min Exi Min Mat Used RIF Installer . | . . . . . . . Robots Hacked . | . . . . . . . Non-combat . | . . . . . . . Combat . | . . . . . . . Robot Hacks Applied . | . . . . . . . Relay Couplers Released 2 | . . . . . . 2 Machine Destruction 2 | . . . . . . 2 Robots Rewired . | . . . . . . . Allies Hacked . | . . . . . . . Hacks Repelled . | . . . . . . . Allies | -11 -10 -9 -9 -9 -8 -8 -------- Run | Scr Mat Mat Min Exi Min Mat Total Allies . | . . . . . . . Largest Group . | . . . . . . . Highest-Rated Group . | . . . . . . . Highest-Rated Ally . | . . . . . . . Total Orders . | . . . . . . . Ally Attacks . | . . . . . . . Total Damage . | . . . . . . . Kills . | . . . . . . . Allies Corrupted . | . . . . . . . Allies Melted . | . . . . . . . Intel | -11 -10 -9 -9 -9 -8 -8 ------- Run | Scr Mat Mat Min Exi Min Mat Robot Analysis Total . | . . . . . . . Derelict Logs Recovered . | . . . . . . . Drone Launches . | . . . . . . . Drone Recoveries . | . . . . . . . Exploration | -11 -10 -9 -9 -9 -8 -8 ------------- Run | Scr Mat Mat Min Exi Min Mat Turns Passed 2356 | 53 662 250 191 338 251 611 Spaces Moved 1270 | 44 336 135 90 223 172 270 Core 3 | 3 . . . . . . Treads . | . . . . . . . Legs 1113 | . 223 135 90 223 172 270 Wheels 154 | 41 113 . . . . . Hover . | . . . . . . . Flight . | . . . . . . . Fastest Speed 50 | 50 90 150 150 150 120 120 Average Speed 138 | 88 122 156 150 150 128 151 Slowest Speed 240 | 100 150 180 180 150 240 240 Overloaded Moves . | . . . . . . . Propulsion Burnouts . | . . . . . . . Robots Hopped . | . . . . . . . Cave-ins Triggered . | . . . . . . . Exploration Rate (%) 32 | 3 49 19 14 60 63 16 Regions Visited 6 Branch Regions 3 Pre-discovered Areas 1 | . . . . 1 . . Known Exits Taken . | . . . . . . . Unknown Exits Taken 6 | 1 1 1 1 1 1 . Scrap Searched 2 | . . . . . 2 . Spaces Dug 8 | . . . . . . 8 Terrain Destroyed 44 | . 3 . . . . 41 Melee 8 | . . . . . . 8 Projectile . | . . . . . . . AOE 36 | . 3 . . . . 33 Actions | -11 -10 -9 -9 -9 -8 -8 --------- Run | Scr Mat Mat Min Exi Min Mat Total 1600 | 55 464 155 114 226 192 394 Wait 65 | . 15 1 . . . 49 Move 1265 | 43 335 135 89 222 171 270 Hop . | . . . . . . . Pick Up 28 | 6 10 3 1 3 1 4 Fast Attach 29 | 6 5 2 2 1 5 8 Attach 23 | . 6 2 5 . 1 9 Detach 7 | . 1 2 1 . . 3 Swap 9 | . 4 1 1 . 2 1 Drop 14 | . 6 . . . 5 3 Fire 100 | . 76 9 1 . 3 11 Melee 54 | . . . 14 . 4 36 Ram . | . . . . . . . Kick 6 | . 6 . . . . . Crush . | . . . . . . . Escape Stasis . | . . . . . . . Rewire . | . . . . . . . Trap . | . . . . . . . Miscellaneous . | . . . . . . . Route ------- -11/Scrapyard -10/Materials -9/Materials -9/Mines -9/Exiles -8/Mines -8/Materials History --------- Turn | Location | Event 21 | -11/Scrapyard | Discovered new exit (range 16) 54 | -11/Scrapyard | Entered Materials 343 | -10/Materials | Build established: Mutant 387 | -10/Materials | Core integrity fell below 50% 443 | -10/Materials | Lost 4 parts (1p1n2w) 473 | -10/Materials | Discovered new exit (range 14) 716 | -10/Materials | Entered another Materials area 716 | -9/Materials | Evolved 2 slots: Propulsion x1, Utility x1 915 | -9/Materials | Discovered new exit (range 12) 966 | -9/Materials | Entered Mines 1083 | -9/Mines | Lost 6 parts (1p3n2w) 1089 | -9/Mines | Deemed a non-threat by the Exiles lab entrance 1091 | -9/Mines | Discovered new exit (range 5) 1157 | -9/Mines | Entered Exiles 1201 | -9/Exiles | Met 8R-AWN 1226 | -9/Exiles | Met EX-HEX 1274 | -9/Exiles | Met EX-BIN 1291 | -9/Exiles | Aligned with FarCom system 1292 | -9/Exiles | Given EX-Vault access code 1328 | -9/Exiles | Build established: Scavenger-Mutant 1330 | -9/Exiles | Opened EX-Vault 1339 | -9/Exiles | Found Longsword +1 1372 | -9/Exiles | Warned to stay clear of 0b10 Research branches 1414 | -9/Exiles | Met EX-DEC 1423 | -9/Exiles | Learned location of Zion (-6) 1475 | -9/Exiles | Discovered new exit (range 14) 1495 | -9/Exiles | Left Exiles lab with Longsword +1 1495 | -9/Exiles | Entered Mines 1500 | -8/Mines | Core integrity fell below 50% 1535 | -8/Mines | Lost 3 parts (2n1w) 1737 | -8/Mines | Discovered new exit (range 9) 1746 | -8/Mines | Entered Materials 1746 | -8/Materials | Evolved 2 slots: Utility x1, Weapon x1 2242 | -8/Materials | Destroyed 10 combat bots 2253 | -8/Materials | Build established: Mutant 2318 | -8/Materials | Core integrity fell below 50% 2326 | -8/Materials | Lost 11 parts (1p3n2u5w) 2344 | -8/Materials | Core integrity fell below 20% 2357 | -8/Materials | Destroyed by G-47 Trooper with Particle Gun Last Messages --------------- 02327_ Flak Cannon destroyed. 02328_ Aluminum Leg destroyed. 02334_ G-47 Trooper destroyed. 02336_ K-01 Serf collects debris. 02336_ Arm. Wheel destroyed. 02336_ K-01 Serf collects debris. 02344_ G-47 Trooper destroyed. 02346_ Destroyed Flight Unit. 02347_ K-01 Serf collects debris. 02348_ R-06 Scavenger collects Aluminum Leg. 02348_ S-10 Pest Lgt. Assault Rifle severed. 02350_ K-01 Serf collects debris. 02350_ S-10 Pest destroyed. 02351_ Acquired 14 matter. 02351_ R-06 Scavenger collects Lgt. Assault Rifle. 02351_ Destroyed Particle Gun. 02354_ R-06 Scavenger collects Lgt. Ion Engine. 02355_ K-01 Serf collects debris. 02355_ G-47 Trooper suffers critical hit. 02355_ Destroyed Aluminum Leg. Map ----- +----------------------------------------------------+ | ?????????????????????????????????????????????????? | | ?????????????????????????????????????????????????? | | ?????????????????????????????????????????????????? | | ?????????????????????????????????????????????????? | | ?????????????????????????????????????????????????? | | ?????????????????????????????????????????????????? | | ?????????????????????????????????????????????????? | | ???????????????????????????????C?????????????????? | | ????????????????????????????????Y????????????????? | | ?????????????????????????????????????????????????? | | ?????????????????????????????????????????????????? | | ?????????????????????????????????????????????????? | | ?????????????????????????????????????????????????? | | ???????????????????????#?????????????????????????? | | ??????????????????????? ?????????????????????????? | | ??????????????????? ?? ?????????????????????????? | | ?????????????????? ?? ?????????????????????????? | | ??????????????????? ? ?????????????????????????? | | ???????????????????"""" ????? ??????????????????? | | ????????????????????""" ????" #?????????????????? | | ????????????????????""" ????" #?????????????????? | | ????????????????????? ??? +?????????????????? | | ????????????????????? ! ??? #?????????????????? | | ?????????????????????# #???# #??? ????????????? | | ????????????????????##/##### #??? "???????????? | | ????????????????????#%r %@[# #?? ""??????????? | | ????????????????????#gs ""g# #?? """?????????? | | ????????????????????#*%=k"=# #? ??????????? | | ????????????????????# [ u" # #? ""??????????? | | ????????????????????# =g # # ????????????? | | ??????w?????????????#% [%* # # ?????????????? | | ????????????????????# ! + + ???????????????? | | ????????????????????# !! # #######??????????? | | ????????????????????# ! k # #/ #??????????? | | ???????????????????## uk!# # """ #??????????? | | ???????????????????# # # """ #??????????? | | ???????????????????## # + """ #??????????? | | ????????????????????# #= # #??????????? | | ????????????????????#####+## # #??????????? | | ??????????????????????### ########??????????? | | ????????????????????????# = # #???????????????? | | ????????????????????????# = # ###?????????????? | | ????????????????????????# !!# #?????????????? | | ????????????????????????# ! % # #?????????????? | | ????????????????????????# *%*# ########???????? | | ????????????????????????# ! # +???????? | | ????????????????????????# # #???????? | | ????????????????????????# # #???????? | | ????????????????????????# # #???????? | | ????????????????????????# # #???????? | +----------------------------------------------------+ Best States ------------- Heat Dissipation 31 Energy Generation 14 Energy Capacity 265 Matter Stores 300 Matter Capacity 300 Sight Range 20 Terrain Scan Density 10 Armor Coverage 150 Core Shielding 20 Propulsion Shielding 66 Evasion (%) 42 Item Schematics ----------------- Hammer | -10/Materials | Hacked Mace | -9/Materials | Hacked Robot Schematics ------------------ None Fabricated ------------ Nothing Alien Tech Used ----------------- None Achievements -------------- None Challenges ------------ None Game ------ Seed LinkedCloakBooster Manual? 0 Play Time 00:25:51 Cumulative 257.0 hours Start 2020.06.30 @ 10:57:29 End 2020.06.30 @ 11:17:42 Sessions 1 Manual Loads 0 Difficulty Rogue Special Mode None Game No. 89 Rogue 89 Adventurer 0 Explorer 0 Win Type - Total 21 Types 17/0/1/2/0/1/0 Lore% 32 Gallery% 74 Achievement% 78 Wizard Run 0 Options --------- ASCII 0 Keyboard 1 Movement Numpad Keybinds 0 Fullscreen 2 Font 20/SmallcapsGlow Map View 66x50 Tactical HUD 1 Map Filters NONE Filters NONE Steam 1 RUN: ea436278-d81a-48aa-ba10-501b1713c6ab